bitfinex/quotes_SOLUSD_20250316
["timestamp","ask_amount","ask_price","bid_price","bid_amount"]
[1742143983293,0.14216157,129.75,129.65,2.7306564]
[1742143983294,26.03827872,129.71,129.65,2.7306564]
[1742143983498,7.66,129.71,129.65,2.7306564]
[1742143983695,0.28432314,129.69,129.65,2.7306564]
[1742143984016,26.03827872,129.66,129.59,7.7166]
[1742143984199,26.03827872,129.63,129.57,7.7178]
[1742143984527,33.69827872,129.65,129.57,7.7178]
[1742143984701,7.66,129.65,129.57,27.0123]
[1742143984900,7.68,129.69,129.58,0.14216157]
[1742143985226,33.71827872,129.74,129.68,26.03827872]
[1742143985521,19.2596,129.81,129.68,26.03827872]
[1742143985522,33.71827872,129.78,129.73,26.03827872]
[1742143985814,0.14216157,129.77,129.73,26.03827872]
[1742143986019,33.71827872,129.8,129.75,26.03827872]
[1742143986220,33.71827872,129.8,129.76,26.03827872]
[1742143986612,26.18044029,129.79,129.74,26.03827872]
[1742143986803,26.18044029,129.79,129.7,18.64964886]
[1742143986804,0.14216157,129.79,129.75,26.03827872]
[1742143987120,18.933972,129.79,129.75,26.03827872]
[1742143987313,26.03827872,129.78,129.73,26.03827872]
[1742143987824,44.97225072,129.79,129.74,33.74597872]
[1742143988197,26.18044029,129.79,129.74,33.74597872]
[1742143989218,7.68,129.8,129.76,26.03827872]
[1742143989394,33.71827872,129.8,129.76,26.03827872]
[1742143989600,33.71827872,129.8,129.75,26.03827872]
[1742143990096,7.68,129.8,129.75,26.03827872]
[1742143990311,33.71827872,129.8,129.75,26.03827872]
[1742143990515,33.71827872,129.8,129.74,7.7077]
[1742143990516,26.03827872,129.78,129.74,7.7077]
[1742143990800,26.18044029,129.79,129.74,33.74597872]
[1742143991407,26.18044029,129.79,129.74,33.77597872]
[1742143991912,26.03827872,129.78,129.74,0.03]
[1742143992110,26.03827872,129.77,129.74,0.03]
[1742143992506,26.32260186,129.75,129.74,0.03]
[1742143992703,34.00260186,129.75,129.74,0.03]
[1742143993205,33.71827872,129.75,129.74,0.03]
[1742143993417,7.68,129.75,129.74,0.03]
[1742143994014,7.68,129.75,129.74,26.06827872]
[1742143994227,7.68,129.8,129.74,26.06827872]
[1742143994520,0.14216157,129.81,129.77,26.03827872]
[1742143994722,7.82216157,129.81,129.77,26.03827872]
[1742143994918,33.86044029,129.81,129.77,26.03827872]
[1742143995324,7.82216157,129.81,129.77,26.03827872]
[1742143995924,26.03827872,129.83,129.78,33.74357872]
[1742143996127,7.68,129.82,129.79,26.03827872]
[1742143996627,26.18044029,129.84,129.78,33.74357872]
[1742143996831,7.68,129.83,129.78,33.74357872]
[1742143997529,7.68,129.83,129.79,26.03827872]
[1742143997703,26.03827872,129.82,129.78,7.7053]
[1742143998133,26.03827872,129.81,129.78,7.7053]
[1742143998434,26.03827872,129.82,129.78,7.7053]
[1742143998637,33.71827872,129.83,129.78,33.74357872]
[1742143998932,7.68,129.83,129.79,26.03827872]
[1742144000125,33.71827872,129.84,129.79,26.03827872]
[1742144000430,26.03827872,129.83,129.78,26.03827872]
[1742144001328,26.03827872,129.81,129.76,53.01107872]
[1742144001523,26.03827872,129.77,129.74,0.03]
[1742144001726,26.32260186,129.75,129.74,0.03]
[1742144001908,26.03827872,129.75,129.74,0.03]
[1742144002110,33.71827872,129.76,129.74,7.7375]
[1742144002421,33.71827872,129.76,129.74,0.03]
[1742144002422,7.68,129.76,129.74,0.03]
[1742144003328,7.68,129.76,129.74,26.06827872]
[1742144004148,7.68,129.76,129.74,0.03]
[1742144006037,26.03827872,129.75,129.74,0.03]
[1742144007337,7.68,129.76,129.74,0.03]
[1742144007710,7.68,129.76,129.74,26.06827872]
[1742144008032,63.41827872,129.8,129.75,26.03827872]
[1742144008206,33.71827872,129.8,129.75,26.03827872]
[1742144008911,33.71827872,129.8,129.76,7.7065]
[1742144010215,33.71827872,129.8,129.75,26.03827872]
[1742144011215,26.03827872,129.78,129.74,0.03]
[1742144011420,26.03827872,129.79,129.74,26.06827872]
[1742144011816,33.71827872,129.8,129.75,26.03827872]
[1742144012747,26.03827872,129.8,129.76,7.7065]
[1742144013046,33.71827872,129.82,129.77,26.03827872]
[1742144013943,7.68,129.82,129.78,26.03827872]
[1742144014164,7.68,129.83,129.79,26.03827872]
[1742144014543,7.68,129.83,129.8,26.03827872]
[1742144014752,7.68,129.83,129.79,26.03827872]
[1742144015043,0.063,129.81,129.8,7.7041]
[1742144015739,0.063,129.81,129.79,33.74277872]
[1742144015946,0.063,129.81,129.78,33.74347872]
[1742144016532,0.063,129.81,129.79,26.03827872]
[1742144017048,0.063,129.81,129.8,7.7041]
[1742144017250,0.063,129.81,129.8,33.74237872]
[1742144017549,0.063,129.81,129.76,96.1173]
[1742144017550,26.10127872,129.81,129.76,96.1173]
[1742144017728,26.10127872,129.81,129.76,122.15557872]
[1742144018358,26.10127872,129.81,129.76,114.44917872]
[1742144018531,26.03827872,129.79,129.74,0.03]
[1742144018845,26.03827872,129.8,129.75,26.03827872]
[1742144019053,26.10127872,129.81,129.76,26.03827872]
[1742144019258,0.063,129.81,129.77,26.03827872]
[1742144019545,33.80477872,129.81,129.76,26.03827872]
[1742144019730,0.063,129.81,129.77,26.03827872]
[1742144020448,26.10127872,129.81,129.76,26.03827872]
[1742144020638,33.80497872,129.81,129.76,26.03827872]
[1742144020948,26.03827872,129.8,129.74,0.03]
[1742144021151,33.74367872,129.78,129.74,0.03]
[1742144021353,41.42367872,129.78,129.74,0.03]
[1742144021737,7.68,129.78,129.74,26.06827872]
[1742144022243,7.68,129.78,129.77,26.03827872]
[1742144022749,0.063,129.81,129.77,26.03827872]
[1742144022931,0.063,129.81,129.79,26.03827872]
[1742144023126,0.063,129.81,129.78,26.03827872]
[1742144023335,0.063,129.81,129.79,26.03827872]
[1742144023952,0.063,129.81,129.78,26.03827872]
[1742144025034,0.063,129.81,129.79,26.03827872]
[1742144025348,0.063,129.81,129.79,33.74287872]
[1742144025553,0.063,129.81,129.77,26.03827872]
[1742144025751,26.10127872,129.81,129.76,26.03827872]
[1742144025941,0.063,129.81,129.77,26.03827872]
[1742144027149,26.10127872,129.81,129.75,7.7069]
[1742144027331,26.10127872,129.81,129.76,26.03827872]
[1742144027731,26.03827872,129.8,129.74,0.03]
[1742144027953,26.03827872,129.79,129.74,26.06827872]
[1742144028452,26.03827872,129.79,129.74,0.03]
[1742144028643,33.74307872,129.79,129.74,33.77587872]
[1742144028850,26.03827872,129.8,129.75,26.03827872]
[1742144029151,26.03827872,129.79,129.74,26.06827872]
[1742144029953,26.03827872,129.79,129.74,0.03]
[1742144030161,26.03827872,129.78,129.74,0.03]
[1742144030327,26.03827872,129.76,129.74,0.03]
[1742144030534,26.03827872,129.75,129.74,0.03]
[1742144030834,26.03827872,129.76,129.74,0.03]
[1742144031239,26.03827872,129.75,129.74,0.03]
[1742144031439,33.74507872,129.76,129.74,0.03]
[1742144031627,41.42437872,129.77,129.74,0.03]
[1742144032332,26.03827872,129.76,129.74,0.03]
[1742144032533,7.68,129.77,129.74,26.06827872]
[1742144032732,7.68,129.77,129.75,26.03827872]
[1742144033238,7.68,129.77,129.74,0.03]
[1742144033455,26.03827872,129.76,129.74,0.03]
[1742144033664,41.42427872,129.77,129.74,0.03]
[1742144034360,7.705,129.79,129.74,26.06827872]
[1742144034552,41.42327872,129.79,129.74,26.06827872]
[1742144035163,41.42327872,129.79,129.74,0.03]
[1742144035461,26.03827872,129.76,129.74,0.03]
[1742144036443,26.03827872,129.75,129.74,0.03]
[1742144036774,26.32260186,129.75,129.74,0.03]
[1742144037149,52.67935072,129.75,129.74,0.03]
[1742144037364,26.03827872,129.7,129.65,26.06827872]
[1742144037566,7.96432314,129.71,129.65,0.03]
[1742144037867,26.03827872,129.68,129.65,0.03]
[1742144038349,26.03827872,129.66,129.65,0.03]
[1742144038658,7.68,129.66,129.65,0.03]
[1742144038859,20.0,129.72,129.65,26.06827872]
[1742144039154,26.03827872,129.7,129.65,7.743]
[1742144039362,41.42797872,129.71,129.66,26.03827872]
[1742144039562,26.03827872,129.7,129.65,33.78117872]
[1742144039768,26.03827872,129.69,129.65,0.03]
[1742144039943,26.03827872,129.68,129.65,0.03]
[1742144040343,33.71827872,129.71,129.66,26.03827872]
[1742144040538,20.0,129.72,129.66,26.03827872]
[1742144040763,7.68,129.73,129.69,26.03827872]
[1742144041152,7.68,129.73,129.71,26.03827872]
[1742144041467,7.68,129.73,129.7,26.03827872]
[1742144041650,26.03827872,129.75,129.68,7.7112]
[1742144041965,26.03827872,129.76,129.71,26.03827872]
[1742144042466,7.7063,129.77,129.71,26.03827872]
[1742144042672,19.2605,129.8,129.75,26.03827872]
[1742144042673,7.96432314,129.8,129.75,26.03827872]
[1742144042964,7.96432314,129.8,129.71,18.64964886]
[1742144042965,26.03827872,129.78,129.73,26.03827872]
[1742144043344,26.03827872,129.78,129.67,86.8965]
[1742144043345,26.03827872,129.74,129.67,86.8965]
[1742144043536,26.03827872,129.73,129.68,33.74927872]
[1742144043737,7.68,129.74,129.71,26.03827872]
[1742144044054,7.68,129.74,129.72,26.03827872]
[1742144044252,7.68,129.74,129.71,26.03827872]
[1742144044649,7.68,129.74,129.72,26.03827872]
[1742144045457,7.68,129.74,129.71,26.03827872]
[1742144045669,7.68,129.74,129.7,26.03827872]
[1742144046172,7.68,129.74,129.71,26.03827872]
[1742144047345,7.68,129.74,129.72,26.03827872]
[1742144047667,41.56614029,129.78,129.73,26.03827872]
[1742144047870,55.73827872,129.84,129.74,26.03827872]
[1742144048049,55.73827872,129.84,129.71,7.7094]
[1742144048050,33.71827872,129.8,129.75,26.03827872]
[1742144048246,41.42247872,129.8,129.75,26.03827872]
[1742144048468,15.3842,129.8,129.76,26.03827872]
[1742144048674,0.063,129.81,129.78,26.03827872]
[1742144048857,0.063,129.81,129.74,112.93477872]
[1742144048858,26.03827872,129.79,129.74,112.93477872]
[1742144049053,26.03827872,129.78,129.73,27.65297872]
[1742144049565,26.03827872,129.78,129.71,13.8059]
[1742144049566,41.40417872,129.77,129.72,26.03827872]
[1742144049867,15.3659,129.77,129.71,6.0965]
[1742144050074,15.3659,129.77,129.71,26.03827872]
[1742144050075,26.03827872,129.76,129.71,26.03827872]
[1742144051153,26.03827872,129.74,129.69,26.03827872]
[1742144052465,7.7079,129.74,129.7,26.03827872]
[1742144053069,33.74617872,129.74,129.69,26.03827872]
[1742144053852,33.74617872,129.74,129.69,33.74877872]
[1742144054350,33.74557872,129.75,129.7,26.03827872]
[1742144054552,33.74557872,129.75,129.7,33.74817872]
[1742144054865,26.03827872,129.74,129.69,26.03827872]
[1742144055367,26.9751,129.75,129.67,26.03827872]
[1742144055368,26.03827872,129.72,129.67,26.03827872]
[1742144055669,7.66,129.72,129.69,26.03827872]
[1742144055868,7.66,129.72,129.7,26.03827872]
[1742144056671,26.03827872,129.76,129.71,26.03827872]
[1742144056874,7.66,129.77,129.73,26.03827872]
[1742144057451,7.66,129.77,129.74,26.03827872]
[1742144057773,33.69827872,129.79,129.74,26.03827872]
[1742144058268,26.03827872,129.78,129.73,26.03827872]
[1742144058464,33.69827872,129.78,129.73,26.03827872]
[1742144058774,33.74417872,129.77,129.72,26.03827872]
[1742144059965,7.66,129.78,129.73,26.03827872]
[1742144059966,33.69827872,129.78,129.73,26.03827872]
[1742144060758,7.66,129.78,129.74,26.03827872]
[1742144060958,15.3654,129.78,129.74,26.03827872]
[1742144061579,15.3654,129.78,129.72,7.7087]
[1742144061580,26.03827872,129.76,129.7,86.9292]
[1742144063159,33.74597872,129.74,129.69,26.03827872]
[1742144063379,26.03827872,129.75,129.7,26.03827872]
[1742144063674,7.7065,129.76,129.72,26.03827872]
[1742144063859,7.7065,129.76,129.71,26.03827872]
[1742144064368,41.40477872,129.76,129.71,26.03827872]
[1742144065174,0.063,129.74,129.73,26.03827872]
[1742144066663,0.063,129.74,129.73,33.74657872]
[1742144068163,0.063,129.74,129.73,133.48055072]
[1742144069076,0.063,129.8,129.74,18.64964886]
[1742144069283,0.063,129.8,129.78,26.03827872]
[1742144070169,0.063,129.8,129.77,26.03827872]
[1742144070374,0.063,129.8,129.76,26.03827872]
[1742144070984,0.063,129.8,129.77,26.03827872]
[1742144072277,0.063,129.8,129.78,26.03827872]
[1742144073898,0.063,129.8,129.79,26.03827872]
[1742144074791,0.063,129.8,129.78,26.03827872]
[1742144075695,0.063,129.8,129.74,87.3389]
[1742144075883,0.063,129.8,129.75,26.03827872]
[1742144076082,33.76127872,129.8,129.75,26.03827872]
[1742144076282,7.723,129.8,129.76,26.03827872]
[1742144076485,33.76127872,129.8,129.74,80.8]
[1742144076688,26.03827872,129.78,129.73,26.03827872]
[1742144077002,26.03827872,129.77,129.72,26.03827872]
[1742144077673,7.7071,129.75,129.71,106.83827872]
[1742144078068,7.7067,129.76,129.72,26.03827872]
[1742144079375,26.03827872,129.79,129.74,26.03827872]
[1742144079574,26.03827872,129.79,129.71,88.5094]
[1742144079774,7.7055,129.78,129.74,26.03827872]
[1742144080090,26.03827872,129.79,129.75,26.03827872]
[1742144080091,7.705,129.79,129.75,26.03827872]
[1742144080291,7.705,129.79,129.76,26.03827872]
[1742144080786,47.72877872,129.8,129.73,18.64964886]
[1742144081096,26.03827872,129.79,129.74,26.03827872]
[1742144081882,7.7053,129.78,129.74,26.03827872]
[1742144082199,33.74357872,129.78,129.73,26.03827872]
[1742144082376,26.03827872,129.77,129.72,106.83827872]
[1742144082573,26.03827872,129.76,129.71,26.03827872]
[1742144083993,33.74537872,129.75,129.69,80.8]
[1742144084175,26.03827872,129.73,129.67,80.8]
[1742144084378,26.03827872,129.73,129.68,26.03827872]
[1742144085101,26.03827872,129.74,129.69,26.03827872]
[1742144085476,26.03827872,129.74,129.68,26.03827872]
[1742144085681,26.03827872,129.73,129.68,26.03827872]
[1742144085989,7.7083,129.73,129.68,26.03827872]
[1742144086589,33.74657872,129.73,129.68,26.03827872]
[1742144087880,7.7083,129.73,129.69,26.03827872]
[1742144088195,7.66,129.75,129.71,26.03827872]
[1742144088400,7.66,129.75,129.72,26.03827872]
[1742144088601,15.3674,129.75,129.72,26.03827872]
[1742144088799,7.7065,129.76,129.73,26.03827872]
[1742144089105,15.3665,129.76,129.73,26.03827872]
[1742144090115,41.40477872,129.76,129.69,18.64964886]
[1742144090401,26.03827872,129.75,129.68,80.8]
[1742144090713,26.03827872,129.75,129.7,26.03827872]
[1742144091086,60.67107872,129.76,129.71,26.03827872]
[1742144091281,60.67107872,129.76,129.68,88.5109]
[1742144091485,26.03827872,129.75,129.68,88.5109]
[1742144091706,60.67107872,129.76,129.71,26.03827872]
[1742144091905,60.67107872,129.76,129.68,88.5109]
[1742144092086,60.67107872,129.76,129.71,26.03827872]
[1742144092300,15.3665,129.76,129.72,26.03827872]
[1742144095277,15.3665,129.76,129.71,26.03827872]
[1742144095478,15.3665,129.76,129.72,26.03827872]
[1742144096906,15.3661,129.77,129.73,26.03827872]
[1742144097699,46.03827872,129.74,129.66,3.82259717]
[1742144098004,26.03827872,129.7,129.66,0.03]
[1742144098208,15.3695,129.71,129.66,0.03]
[1742144098418,7.66,129.71,129.68,26.03827872]
[1742144098781,7.66,129.71,129.66,0.03]
[1742144099087,7.66,129.71,129.67,26.03827872]
[1742144099286,7.66,129.71,129.68,26.03827872]
[1742144099891,26.03827872,129.69,129.66,0.03]
[1742144100094,7.66,129.7,129.66,0.03]
[1742144100302,7.66,129.7,129.66,26.06827872]
[1742144101280,7.66,129.7,129.67,26.03827872]
[1742144101482,7.7091,129.72,129.69,26.06827872]
[1742144101688,7.7091,129.72,129.69,0.03]
[1742144101891,7.7091,129.72,129.69,26.06827872]
[1742144102191,7.7091,129.72,129.69,0.03]
[1742144102520,33.74737872,129.72,129.69,0.03]
[1742144102714,53.01957872,129.72,129.69,0.03]
[1742144103088,60.67957872,129.72,129.69,0.03]
[1742144104009,26.03827872,129.71,129.69,0.03]
[1742144104250,7.7101,129.7,129.69,0.03]
[1742144104824,7.7096,129.71,129.69,26.06827872]
[1742144105109,15.3691,129.72,129.7,26.03827872]
[1742144105288,7.7091,129.72,129.7,26.03827872]
[1742144105693,7.7084,129.73,129.7,26.03827872]
[1742144105989,7.66,129.75,129.72,26.03827872]
[1742144106600,7.66,129.75,129.71,26.03827872]
[1742144106999,7.66,129.75,129.72,26.03827872]
[1742144108019,7.9061,129.77,129.74,26.03827872]
[1742144108020,0.063,129.77,129.74,26.03827872]
[1742144108193,0.063,129.77,129.75,26.03827872]
[1742144108396,0.063,129.77,129.76,26.03827872]
[1742144109208,0.063,129.77,129.73,18.64964886]
[1742144109511,0.063,129.77,129.76,26.03827872]
[1742144109907,0.063,129.77,129.73,18.64964886]
[1742144110292,0.063,129.77,129.76,26.03827872]
[1742144111296,0.063,129.77,129.75,7.9681]
[1742144111496,0.063,129.77,129.72,1.6158]
[1742144111714,26.03827872,129.75,129.69,87.1823]
[1742144111916,26.03827872,129.76,129.71,26.03827872]
[1742144112204,33.80737872,129.77,129.72,26.03827872]
[1742144112407,7.7691,129.77,129.73,26.03827872]
[1742144112810,33.80737872,129.77,129.72,26.03827872]
[1742144113210,26.03827872,129.76,129.71,26.03827872]
[1742144113709,26.03827872,129.75,129.7,106.83827872]
[1742144113898,26.03827872,129.73,129.69,26.06827872]
[1742144114098,7.7083,129.73,129.69,26.06827872]
[1742144115904,7.7083,129.73,129.7,26.03827872]
[1742144116627,7.7083,129.73,129.69,26.06827872]
[1742144116808,15.3678,129.74,129.7,26.03827872]
[1742144117719,15.3678,129.74,129.7,26.03827872]
[1742144118627,15.3678,129.74,129.69,0.03]
[1742144118801,15.3678,129.74,129.7,26.03827872]
[1742144119728,15.3678,129.74,129.69,0.03]
[1742144119729,26.03827872,129.73,129.69,0.03]
[1742144119938,26.03827872,129.7,129.69,0.03]
[1742144120514,26.03827872,129.71,129.69,0.03]
[1742144121229,26.03827872,129.7,129.69,0.03]
[1742144121725,7.7089,129.72,129.69,26.06827872]
[1742144122026,7.7085,129.73,129.69,26.06827872]
[1742144122204,1.5519,129.75,129.71,26.03827872]
[1742144122605,9.2592,129.75,129.69,27.7405]
[1742144122834,26.03827872,129.74,129.69,46.06827872]
[1742144123242,28.527,129.75,129.69,0.03]
[1742144123243,26.03827872,129.73,129.69,0.03]
[1742144123747,26.03827872,129.71,129.69,0.03]
[1742144123920,33.67827872,129.71,129.69,0.03]
[1742144124111,7.64,129.71,129.69,0.03]
[1742144125339,33.67827872,129.74,129.69,26.06827872]
[1742144125836,41.38597872,129.74,129.69,26.06827872]
[1742144126137,7.703,129.74,129.7,26.03827872]
[1742144126330,33.74127872,129.74,129.69,0.03]
[1742144126534,26.03827872,129.72,129.69,0.03]
[1742144126753,7.7101,129.7,129.69,0.03]
[1742144127117,27.11576157,129.74,129.69,0.03]
[1742144127340,15.4109,129.74,129.69,26.06827872]
[1742144127520,41.44917872,129.74,129.69,26.06827872]
[1742144127921,15.4109,129.74,129.7,26.03827872]
[1742144128120,7.703,129.74,129.71,26.03827872]
[1742144128328,0.063,129.74,129.69,0.03]
[1742144128533,0.063,129.74,129.71,26.03827872]
[1742144129113,0.063,129.74,129.71,33.74757872]
[1742144129838,0.063,129.74,129.72,26.03827872]
[1742144131429,0.063,129.74,129.73,26.03827872]
[1742144133038,0.063,129.74,129.73,33.74657872]
[1742144134036,0.063,129.74,129.73,133.19622758]
[1742144135027,0.063,129.74,129.73,134.63624378]
[1742144136532,0.063,129.74,129.73,88.5083]
[1742144136725,0.063,129.74,129.71,26.03827872]
[1742144136935,0.063,129.74,129.72,26.03827872]
[1742144138022,0.063,129.74,129.73,26.03827872]
[1742144138227,0.063,129.74,129.73,44.68792758]
[1742144138644,0.063,129.74,129.73,52.39622758]
[1742144139042,0.063,129.74,129.73,134.63629707]
[1742144139250,0.063,129.74,129.73,133.48055072]
[1742144141565,0.063,129.77,129.76,20.28432314]
[1742144141855,0.063,129.77,129.76,127.12260186]
[1742144142327,0.063,129.77,129.76,100.8]
[1742144142530,0.063,129.77,129.76,126.83827872]
[1742144143648,0.063,129.77,129.76,46.03827872]
[1742144143957,0.063,129.77,129.76,53.74477872]
[1742144144330,0.063,129.77,129.76,46.03827872]
[1742144144533,0.063,129.77,129.76,20.0]
[1742144144861,0.063,129.77,129.76,53.74477872]
[1742144145651,0.063,129.77,129.76,153.47875072]
[1742144145828,0.063,129.77,129.76,187.36672944]
[1742144146228,0.063,129.77,129.76,161.32845072]
[1742144146733,0.063,129.77,129.76,187.36672944]
[1742144147343,0.063,129.77,129.76,161.32845072]
[1742144148754,0.063,129.77,129.76,187.36672944]
[1742144149278,0.0001,129.77,129.76,187.36672944]
[1742144149462,0.063,129.8,129.79,38.64964886]
[1742144149629,0.063,129.8,129.79,64.68792758]
[1742144150455,0.063,129.8,129.79,64.97225072]
[1742144150752,0.063,129.8,129.79,145.77225072]
[1742144151056,0.063,129.8,129.79,153.47695072]
[1742144153155,0.063,129.8,129.79,143.67336212]
[1742144153338,0.063,129.8,129.79,117.03469012]
[1742144155770,0.063,129.8,129.79,143.38903898]
[1742144156134,0.063,129.8,129.79,143.67336212]
[1742144156554,0.063,129.8,129.79,127.438672]
[1742144156861,0.063,129.8,129.79,36.23469012]
[1742144157240,0.063,129.8,129.79,43.93939012]
[1742144158235,0.063,129.8,129.79,62.58903898]
[1742144160276,0.063,129.8,129.79,36.23469012]
[1742144160482,0.063,129.8,129.79,43.93939012]
[1742144161765,0.063,129.8,129.79,62.58903898]
[1742144162156,0.063,129.8,129.79,36.23469012]
[1742144162357,0.063,129.8,129.79,62.58903898]
[1742144163270,0.063,129.8,129.79,143.67336212]
[1742144164776,0.063,129.81,129.8,18.64964886]
[1742144165078,0.063,129.81,129.8,34.88433898]
[1742144165286,0.063,129.81,129.8,35.16866212]
[1742144166362,0.063,129.87,129.84,16.23469012]
[1742144166562,0.063,129.87,129.85,16.23469012]
[1742144167771,0.063,129.87,129.83,36.23469012]
[1742144168069,16.29769012,129.87,129.83,20.0]
[1742144168770,0.063,129.87,129.83,36.23469012]
[1742144168964,16.29769012,129.87,129.83,20.0]
[1742144169171,0.063,129.87,129.83,36.23469012]
[1742144169467,0.063,129.87,129.84,16.23469012]
[1742144169672,0.063,129.87,129.83,27.7021]
[1742144169673,0.063,129.87,129.86,16.23469012]
[1742144171355,0.063,129.87,129.84,18.64964886]
[1742144171674,0.063,129.87,129.85,16.23469012]
[1742144171855,0.063,129.87,129.86,16.23469012]
[1742144173472,0.063,129.87,129.85,7.7008]
[1742144173677,16.29769012,129.87,129.82,16.23469012]
[1742144175277,16.23469012,129.85,129.8,16.23469012]
[1742144175478,7.7017,129.84,129.8,16.23469012]
[1742144175949,7.7014,129.85,129.81,16.23469012]
[1742144176150,7.7014,129.85,129.79,88.5047]
[1742144176372,7.7014,129.85,129.81,16.23469012]
[1742144176966,7.7014,129.85,129.79,88.5047]
[1742144177173,7.7014,129.85,129.81,16.23469012]
[1742144178076,7.7014,129.85,129.79,88.5047]
[1742144178077,7.7008,129.86,129.83,16.23469012]
[1742144179064,23.93549012,129.86,129.81,16.23469012]
[1742144179466,16.23469012,129.84,129.79,80.8]
[1742144179875,16.23469012,129.84,129.79,97.03469012]
[1742144180083,16.23469012,129.83,129.79,80.8]
[1742144182288,7.7029,129.82,129.79,80.8]
[1742144183086,7.7023,129.84,129.81,16.23469012]
[1742144183290,7.683,129.87,129.83,16.23469012]
[1742144184071,7.7008,129.86,129.82,16.23469012]
[1742144184387,26.9523,129.86,129.79,80.8]
[1742144184577,16.23469012,129.83,129.79,80.8]
[1742144184767,16.23469012,129.84,129.79,97.03469012]
[1742144184962,16.29769012,129.84,129.79,97.03469012]
[1742144185170,16.29769012,129.84,129.79,16.23469012]
[1742144185462,16.23469012,129.83,129.78,16.23469012]
[1742144185665,0.063,129.84,129.81,16.23469012]
[1742144185866,7.5638,129.86,129.82,16.23469012]
[1742144186065,16.23469012,129.85,129.81,16.23469012]
[1742144186265,23.93629012,129.85,129.81,16.23469012]
[1742144186666,7.7016,129.85,129.81,16.23469012]
[1742144187083,23.93629012,129.85,129.79,107.15404886]
[1742144187286,23.93629012,129.85,129.81,16.23469012]
[1742144187790,7.7016,129.85,129.81,16.23469012]
[1742144188091,7.7016,129.85,129.81,15.93469012]
[1742144189289,16.23469012,129.84,129.79,97.03469012]
[1742144189477,16.23469012,129.83,129.79,80.8]
[1742144190071,16.23469012,129.84,129.79,80.8]
[1742144190473,16.23469012,129.84,129.79,97.03469012]
[1742144190995,43.18919012,129.85,129.79,97.03469012]
[1742144191370,26.9545,129.85,129.79,97.03469012]
[1742144191571,43.18919012,129.85,129.8,16.23469012]
[1742144192891,23.93529012,129.86,129.79,88.5047]
[1742144193089,23.93529012,129.86,129.81,16.23469012]
[1742144195878,23.93529012,129.86,129.8,16.23469012]
[1742144196397,7.7017,129.84,129.8,16.23469012]
[1742144197086,16.23469012,129.86,129.79,7.7047]
[1742144197282,16.23469012,129.86,129.81,16.23469012]
[1742144197890,23.91769012,129.87,129.82,16.23469012]
[1742144198082,23.93529012,129.86,129.81,16.23469012]
[1742144199297,16.23469012,129.85,129.8,16.23469012]
[1742144200096,16.23469012,129.84,129.79,16.23469012]
[1742144200289,7.7023,129.83,129.79,16.23469012]
[1742144200493,7.7023,129.83,129.8,16.23469012]
[1742144201989,7.7023,129.83,129.78,99.44964886]
[1742144201990,7.7023,129.83,129.79,16.23469012]
[1742144202209,7.7023,129.83,129.78,97.03469012]
[1742144202903,7.7023,129.83,129.79,16.23469012]
[1742144205014,7.7023,129.83,129.8,16.23469012]
[1742144205204,7.7023,129.83,129.8,10.39172273]
[1742144206524,7.7017,129.84,129.8,10.39172273]
[1742144207088,10.39172273,129.83,129.78,80.8]
[1742144207294,10.39172273,129.81,129.77,0.03]
[1742144207502,10.39172273,129.8,129.77,0.03]
[1742144207703,10.39172273,129.81,129.77,0.03]
[1742144208711,7.7041,129.8,129.77,0.03]
[1742144209194,18.09582273,129.8,129.78,0.03]
[1742144209412,10.39172273,129.79,129.78,0.03]
[1742144210220,18.09582273,129.8,129.78,0.03]
[1742144210712,7.7035,129.81,129.78,10.42172273]
[1742144210920,15.323,129.82,129.8,10.39172273]
[1742144211298,15.323,129.82,129.79,10.39172273]
[1742144211494,7.62,129.82,129.79,10.39172273]
[1742144211695,7.62,129.82,129.8,10.39172273]
[1742144212218,15.323,129.82,129.8,10.39172273]
[1742144212418,7.62,129.82,129.8,10.39172273]
[1742144212826,7.62,129.82,129.78,7.7351]